bitfinex/quotes_ETHUSD_20250909
["timestamp","ask_amount","ask_price","bid_price","bid_amount"]
[1757404083152,1.231,4348.3,4348.2,6.26880221]
[1757404083553,1.231,4348.3,4348.2,2.29980221]
[1757404083879,1.3541,4348.3,4347.8,0.002]
[1757404084652,1.3541,4348.3,4347.8,2.30200666]
[1757404084855,0.9236,4348.2,4347.8,0.002]
[1757404085214,0.3064,4347.9,4347.8,0.002]
[1757404085616,1.23,4347.9,4347.8,0.002]
[1757404086558,1.23,4347.9,4347.8,2.3020138]
[1757404086559,0.7807,4347.9,4347.8,2.3020138]
[1757404086765,0.001,4348.3,4348.0,2.29988582]
[1757404087061,0.001,4348.3,4348.1,2.29981426]
[1757404087258,0.1154,4348.3,4348.2,2.29980221]
[1757404087679,0.001,4348.3,4348.2,2.60560221]
[1757404087878,0.001,4348.3,4348.0,3.0]
[1757404087879,1.231,4348.3,4348.0,3.0]
[1757404088080,0.9236,4348.2,4348.1,2.29984184]
[1757404088442,1.23,4348.2,4348.1,2.29984184]
[1757404089354,0.3064,4348.2,4348.1,2.29984184]
[1757404089657,1.23,4348.2,4348.1,2.29984184]
[1757404090862,0.7807,4348.2,4348.1,2.29984184]
[1757404091290,0.4743,4348.2,4348.1,2.29984184]
[1757404091583,0.001,4348.3,4348.2,2.29980221]
[1757404091780,0.0002,4348.3,4348.2,6.26380221]
[1757404092001,0.0002,4348.3,4348.2,6.56960221]
[1757404093893,0.0002,4348.3,4348.2,9.87120221]
[1757404094100,0.0002,4348.3,4348.2,10.79233192]
[1757404094396,0.0002,4348.3,4348.2,10.49073192]
[1757404094600,0.0002,4348.3,4348.2,10.79233192]
[1757404095064,0.0002,4348.3,4348.2,10.49073192]
[1757404095250,0.0002,4348.3,4348.2,10.83793192]
[1757404095959,0.0002,4348.3,4348.2,10.79233192]
[1757404096603,0.0002,4348.3,4348.2,10.49073192]
[1757404096795,0.0002,4348.3,4348.2,10.79233192]
[1757404097198,0.0002,4348.3,4348.2,10.49073192]
[1757404100095,0.0002,4348.3,4348.2,10.79233192]
[1757404100479,0.0002,4348.3,4348.2,11.16833192]
[1757404100829,0.0002,4348.3,4348.2,11.51553192]
[1757404101172,0.5143,4349.9,4349.7,2.29900912]
[1757404101484,0.04,4349.9,4349.7,6.47991003]
[1757404101683,0.04,4349.9,4349.7,9.78571003]
[1757404102296,0.4743,4350.7,4349.8,5.29895627]
[1757404102618,0.025,4350.8,4350.7,2.2984807]
[1757404102820,0.025,4350.8,4350.7,6.2524807]
[1757404103013,0.3314,4350.8,4350.7,6.2524807]
[1757404103223,1.255,4350.8,4350.7,6.2524807]
[1757404105891,1.255,4350.8,4350.7,3.954]
[1757404106203,1.255,4350.8,4350.7,6.2524807]
[1757404109621,0.8057,4350.8,4350.7,6.2524807]
[1757404109829,0.025,4350.8,4350.7,7.41338436]
[1757404110181,0.025,4350.8,4350.7,7.10758436]
[1757404110386,0.025,4350.8,4350.7,6.2524807]
[1757404110584,0.025,4350.8,4350.7,6.3668807]
[1757404111705,0.025,4350.8,4350.7,6.6590807]
[1757404111900,0.025,4350.8,4350.7,6.3668807]
[1757404114023,0.025,4350.8,4350.7,6.6590807]
[1757404115232,0.3207,4350.8,4350.7,6.3668807]
[1757404115424,1.2658,4350.8,4350.7,6.3668807]
[1757404115596,1.39638,4350.8,4350.3,1.765]
[1757404115796,0.9451,4350.7,4350.4,3.938]
[1757404115992,0.2957,4350.5,4350.4,6.2366392]
[1757404116304,1.2408,4350.5,4350.4,6.2366392]
[1757404117794,1.24,4350.5,4350.4,6.2366392]
[1757404118890,0.6042,4350.8,4350.6,2.29848676]
[1757404119127,0.9451,4350.7,4350.6,6.23648676]
[1757404119424,1.2408,4350.7,4350.6,3.938]
[1757404120220,0.4803,4350.7,4350.6,6.23653353]
[1757404120691,0.776,4350.7,4350.6,6.23653353]
[1757404121094,1.2408,4350.7,4350.6,6.23653353]
[1757404121294,0.776,4350.7,4350.6,6.23653353]
[1757404123032,0.4803,4350.7,4350.6,6.23653353]
[1757404123843,0.776,4350.7,4350.6,3.938]
[1757404124041,1.2408,4350.7,4350.6,3.938]
[1757404126657,0.776,4350.7,4350.6,3.938]
[1757404126856,1.2408,4350.7,4350.6,3.938]
[1757404128466,0.776,4350.7,4350.6,6.23653353]
[1757404128968,1.2408,4350.7,4350.6,3.938]
[1757404129354,1.2408,4350.7,4350.1,3.1144]
[1757404129567,1.2408,4350.7,4349.8,0.002]
[1757404129568,1.15824467,4350.6,4349.8,0.002]
[1757404129955,0.2957,4349.9,4349.8,0.002]
[1757404130134,0.2957,4349.9,4349.8,3.942]
[1757404130551,1.2408,4349.9,4349.8,3.942]
[1757404134785,1.59475504,4349.9,4349.8,0.002]
[1757404134948,1.2408,4349.9,4349.8,0.002]
[1757404135977,0.4803,4350.2,4349.8,0.002]
[1757404136277,0.9451,4350.6,4349.9,2.29885815]
[1757404136583,0.9451,4350.6,4349.8,6.23895597]
[1757404136790,0.9451,4350.6,4350.4,2.29859835]
[1757404136994,0.4803,4350.6,4350.3,2.29867733]
[1757404137356,0.9451,4350.6,4350.2,6.23674339]
[1757404137561,0.9451,4350.5,4350.2,6.23674339]
[1757404137881,0.4803,4350.5,4350.2,6.23674339]
[1757404139602,0.4803,4350.5,4350.3,2.29868672]
[1757404139954,0.1144,4350.6,4350.4,2.2986392]
[1757404140160,0.1144,4350.6,4350.2,3.938]
[1757404140368,0.1144,4350.6,4350.2,6.23673463]
[1757404140692,0.1144,4350.6,4350.2,3.938]
[1757404140893,1.0595,4350.6,4350.3,2.29865682]
[1757404141081,1.0595,4350.6,4350.2,3.938]
[1757404141082,0.5792,4350.6,4350.2,3.938]
[1757404141284,0.2957,4350.3,4350.2,3.938]
[1757404141489,0.9293,4350.5,4350.2,3.938]
[1757404141795,0.9293,4350.5,4350.2,6.23673613]
[1757404142387,0.9293,4350.5,4350.2,3.938]
[1757404142584,0.9293,4350.5,4350.2,6.23673692]
[1757404142783,0.9293,4350.5,4350.2,3.938]
[1757404142974,0.9293,4350.5,4350.2,6.23670309]
[1757404143177,0.9293,4350.5,4350.3,2.29868835]
[1757404143375,0.1144,4350.6,4350.5,2.29858636]
[1757404143973,0.1144,4350.6,4350.2,6.23673992]
[1757404143974,0.4136,4350.6,4350.2,3.938]
[1757404144178,0.9307,4350.5,4350.3,2.29865068]
[1757404144380,0.9307,4350.5,4350.4,3.938]
[1757404144710,0.4817,4350.5,4350.4,6.2366392]
[1757404144908,0.1136,4350.6,4350.5,2.29858636]
[1757404145507,0.1136,4350.6,4350.5,2.60947222]
[1757404145662,0.1136,4350.6,4350.5,3.47110247]
[1757404145868,0.001,4350.7,4350.6,2.29853353]
[1757404146201,0.001,4350.7,4350.6,6.23653353]
[1757404146394,0.001,4350.7,4350.6,6.52443353]
[1757404146896,0.001,4350.7,4350.6,9.82683353]
[1757404147098,0.001,4350.7,4350.6,10.90572628]
[1757404148389,0.001,4350.7,4350.6,10.95132628]
[1757404148779,0.001,4350.7,4350.6,10.90572628]
[1757404149764,0.001,4350.7,4350.6,10.60332628]
[1757404150382,0.001,4350.7,4350.6,10.31542628]
[1757404150702,0.001,4350.7,4350.6,10.60332628]
[1757404151064,0.001,4350.7,4350.6,10.31542628]
[1757404151924,0.001,4350.7,4350.6,10.60332628]
[1757404152090,0.001,4350.7,4350.6,10.90572628]
[1757404152638,0.001,4350.7,4350.6,10.60332628]
[1757404155831,0.001,4350.7,4350.6,10.71772628]
[1757404159311,0.7827,4350.7,4350.6,10.42782628]
[1757404159513,1.2317,4350.7,4350.6,9.34893353]
[1757404160143,0.7827,4350.7,4350.6,9.34893353]
[1757404160305,0.4827,4350.7,4350.6,9.34893353]
[1757404160511,0.001,4350.7,4350.6,9.34893353]
[1757404160724,1.2317,4350.7,4350.6,9.34893353]
[1757404162544,0.7827,4350.7,4350.6,9.34893353]
[1757404162715,0.001,4350.7,4350.6,9.63883353]
[1757404163545,0.001,4350.7,4350.6,9.35093353]
[1757404164317,0.001,4350.7,4350.6,9.63883353]
[1757404165047,0.001,4350.7,4350.6,9.35093353]
[1757404168159,0.001,4350.7,4350.6,9.63883353]
[1757404168540,0.001,4350.7,4350.6,9.35093353]
[1757404169163,0.001,4350.7,4350.6,9.63883353]
[1757404169366,0.001,4350.7,4350.6,9.35093353]
[1757404169926,0.001,4350.7,4350.6,9.63883353]
[1757404170165,0.001,4350.7,4350.6,11.00897722]
[1757404170462,0.0002,4350.7,4350.6,11.00897722]
[1757404170960,0.001,4351.2,4351.1,2.2982694]
[1757404171161,0.001,4351.2,4351.1,9.2332694]
[1757404171373,0.001,4351.2,4351.1,9.5211694]
[1757404171674,0.001,4351.2,4351.1,10.22893457]
[1757404172192,0.001,4351.2,4351.1,10.53133457]
[1757404172346,0.001,4351.2,4351.1,10.22893457]
[1757404173281,1.2418,4351.2,4351.1,5.2982694]
[1757404173446,1.2418,4351.2,4351.1,9.2332694]
[1757404175499,1.2418,4351.2,4351.1,6.2332694]
[1757404180198,1.2418,4351.2,4351.1,3.935]
[1757404180402,1.3562,4351.2,4350.9,3.934]
[1757404180556,0.13562,4351.1,4350.9,3.934]
[1757404180757,0.9292,4351.1,4350.9,3.934]
[1757404181053,1.2408,4351.0,4350.9,3.934]
[1757404182462,1.2408,4351.0,4350.8,6.23242058]
[1757404182663,0.3116,4351.0,4350.8,6.23242058]
[1757404182885,0.9292,4350.9,4350.8,9.23242058]
[1757404183189,1.2408,4350.9,4350.8,9.23242058]
[1757404184391,0.001,4351.2,4350.8,8.38729416]
[1757404184563,0.001,4351.2,4351.1,2.2982694]
[1757404184758,0.001,4351.2,4351.1,6.2322694]
[1757404185090,1.2418,4351.2,4351.1,6.2322694]
[1757404185681,0.001,4351.2,4351.1,9.2322694]
[1757404185915,0.001,4351.2,4351.1,10.99677384]
[1757404186211,0.001,4351.2,4351.1,9.5322694]
[1757404189311,0.001,4351.2,4351.1,9.9490694]
[1757404190204,0.001,4351.2,4351.1,9.6466694]
[1757404190401,0.001,4351.2,4351.1,9.9490694]
[1757404190716,0.001,4351.2,4351.1,9.6466694]
[1757404190921,0.001,4351.2,4351.1,11.14357384]
[1757404191421,0.001,4351.2,4351.1,10.88677384]
[1757404191595,0.001,4351.2,4351.1,11.18917384]
[1757404192122,0.001,4351.2,4351.1,11.98117384]
[1757404195342,0.001,4351.2,4351.1,11.98117384]
[1757404196330,0.0002,4351.2,4351.1,11.98117384]
[1757404198819,0.0002,4351.2,4351.1,11.33117384]
[1757404199223,0.0002,4351.2,4351.1,10.53917384]
[1757404200037,0.0002,4351.2,4351.1,10.83917384]
[1757404200239,1.241,4351.2,4351.1,2.4126694]
[1757404200539,1.241,4351.2,4351.1,6.3436694]
[1757404201054,1.241,4351.2,4351.1,9.3436694]
[1757404205743,0.4945,4351.2,4351.1,9.3436694]
[1757404205950,0.0002,4351.2,4351.1,9.3436694]
[1757404206642,1.2235,4351.2,4351.1,9.3436694]
[1757404207743,1.2235,4351.2,4351.1,9.2292694]
[1757404207744,0.7808,4351.2,4351.1,9.2292694]
[1757404208120,1.2235,4351.2,4351.1,9.2292694]
[1757404209018,0.7808,4351.2,4351.1,9.2292694]
[1757404209217,1.2235,4351.2,4351.1,9.2292694]
[1757404209849,0.4741,4351.2,4351.1,9.2292694]
[1757404210052,0.0002,4351.2,4351.1,10.86777282]
[1757404210815,0.0002,4351.2,4351.1,11.65977282]
[1757404211020,0.0002,4351.2,4351.1,11.96217282]
[1757404212052,0.0002,4351.2,4351.1,42.00777282]
[1757404215148,0.0002,4351.2,4351.1,41.96217282]
[1757404220026,0.4749,4352.1,4351.8,3.08989971]
[1757404220230,0.001,4352.1,4352.0,6.08979411]
[1757404220531,0.9176,4352.1,4352.0,10.01779411]
[1757404220850,1.2243,4352.1,4352.0,10.01779411]
[1757404221063,0.001,4352.1,4352.0,10.01779411]
[1757404221429,0.001,4352.1,4352.0,10.31559411]
[1757404221678,0.001,4352.1,4352.0,10.62940958]
[1757404222468,0.0002,4352.1,4352.0,10.62940958]
[1757404223078,0.0002,4352.1,4352.0,10.33160958]
[1757404223279,0.0002,4352.1,4352.0,10.62940958]
[1757404225287,1.2235,4352.1,4352.0,10.33160958]
[1757404225752,0.001,4352.2,4352.1,5.29774132]
[1757404226079,0.001,4352.2,4352.1,37.07624474]
[1757404226256,0.001,4352.2,4352.1,38.43748222]
[1757404226577,0.001,4352.2,4352.1,38.16604474]
[1757404227513,0.001,4352.2,4352.1,6.63844474]
[1757404227514,0.7816,4352.2,4352.1,6.63844474]
[1757404227650,0.7816,4352.2,4352.1,2.29774132]
[1757404227980,1.2243,4352.2,4352.1,1.79774132]
[1757404228183,1.2243,4352.2,4352.1,5.72374132]
[1757404228549,1.2243,4352.2,4350.8,0.027]
[1757404228550,1.34673,4352.2,4350.8,0.027]
[1757404228751,1.34673,4352.2,4351.2,3.24]
[1757404228954,0.9166,4352.1,4351.2,3.24]
[1757404229149,0.9166,4352.1,4351.3,2.29815361]
[1757404229389,0.9166,4352.0,4351.5,2.29805373]
[1757404229679,0.3067,4351.6,4351.5,5.29805373]
[1757404229889,1.2233,4351.6,4351.5,5.29805373]
[1757404230283,1.3377,4351.6,4351.5,5.29805373]
[1757404232189,0.895,4351.6,4351.5,5.29805373]
[1757404232388,1.2364,4351.6,4351.5,5.29805373]
[1757404234200,0.001,4352.2,4351.9,5.29784691]
[1757404234201,0.4857,4352.0,4351.9,5.29784691]
[1757404234404,1.2581,4352.0,4351.9,9.22384691]
[1757404235773,0.8023,4352.0,4351.9,9.22384691]
[1757404238423,1.2581,4352.0,4351.9,9.22384691]
[1757404238921,0.8023,4352.0,4351.9,9.22384691]
[1757404242725,1.2581,4352.0,4351.9,9.22384691]
[1757404243730,0.8023,4352.0,4351.9,9.22384691]
[1757404244723,0.1144,4352.1,4352.0,2.29779411]
[1757404246877,0.431,4352.1,4352.0,2.29779411]
[1757404247046,0.9167,4352.1,4352.0,2.29779411]
[1757404248652,0.9159,4352.1,4352.0,2.29779411]
[1757404249847,0.3166,4352.1,4352.0,2.29779411]
[1757404250147,0.8023,4352.1,4352.0,2.29779411]
[1757404250458,0.4857,4352.1,4352.0,2.29779411]
[1757404250615,0.4857,4352.1,4352.0,2.32077205]
[1757404250816,0.4857,4352.1,4352.0,2.29779411]
[1757404251043,0.8023,4352.1,4352.0,2.29779411]
[1757404251250,0.001,4352.2,4352.1,2.29774132]
[1757404251449,0.001,4352.2,4352.1,6.22074132]
[1757404253490,0.001,4352.2,4352.1,11.80228127]
[1757404253859,0.001,4352.2,4352.1,11.33498127]
[1757404258798,0.001,4352.2,4352.1,11.80228127]
[1757404259601,0.001,4352.2,4352.1,12.59428127]
[1757404259981,0.001,4352.2,4352.1,12.70868127]
[1757404260963,0.001,4352.2,4352.1,42.70868127]
[1757404261933,0.001,4352.2,4352.1,37.09238127]
[1757404262214,0.001,4352.2,4352.1,41.46138127]
[1757404262420,0.001,4352.2,4352.1,41.94788127]
[1757404262765,0.001,4352.2,4352.1,42.73988127]
[1757404264607,0.001,4352.2,4352.1,42.25338127]
[1757404264768,0.001,4352.2,4352.1,12.25338127]
[1757404265107,0.001,4352.2,4352.1,42.25338127]
[1757404266282,0.001,4352.2,4352.1,42.73988127]
[1757404267000,0.001,4352.2,4352.1,42.25338127]
[1757404267406,0.001,4352.2,4352.1,42.73988127]
[1757404269797,0.04,4352.9,4352.8,2.2973718]
[1757404269998,0.04,4352.9,4352.8,11.43985313]
[1757404270199,1e-08,4352.9,4352.8,12.30085313]
[1757404270582,1e-08,4352.9,4352.8,12.39956217]
[1757404271023,1e-08,4352.9,4352.8,11.95156217]
[1757404271515,1e-08,4352.9,4352.8,11.65296217]
[1757404271719,0.77410001,4352.9,4352.8,11.65296217]
[1757404272719,1e-08,4352.9,4352.8,11.95156217]
[1757404273955,1e-08,4352.9,4352.8,11.65296217]
[1757404274463,1e-08,4352.9,4352.8,11.95156217]
[1757404274813,0.00020001,4353.1,4353.0,2.29726625]
[1757404275014,0.00020001,4353.1,4353.0,9.21626625]
[1757404275342,0.77430001,4353.1,4353.0,10.72029378]
[1757404276065,0.00020001,4353.1,4353.0,11.01889378]
[1757404276868,0.00020001,4353.1,4353.0,11.46689378]
[1757404277045,0.00020001,4353.1,4353.0,12.37329378]
[1757404277363,0.001,4353.4,4353.3,2.29710794]
[1757404277553,0.001,4353.4,4353.3,9.67458927]
[1757404277753,0.001,4353.4,4353.3,10.08758927]
[1757404277955,0.001,4353.4,4353.3,10.53558927]
[1757404278158,0.001,4353.4,4353.3,11.21318927]
[1757404279546,0.001,4353.4,4353.3,11.69968927]
[1757404279746,0.4692,4354.6,4354.5,2.29647491]
[1757404279940,0.001,4355.6,4354.6,2.29642217]
[1757404279941,0.4612,4354.7,4354.6,2.29642217]
[1757404280136,1.2433,4354.7,4354.6,9.21442217]
[1757404280860,1.2433,4354.7,4354.6,2.29642217]
[1757404281059,1.2433,4354.7,4354.6,9.21342217]
[1757404282367,0.7741,4354.7,4354.6,9.21342217]
[1757404282774,0.04,4354.9,4354.7,5.29636943]
[1757404283460,0.3379,4354.8,4354.7,5.29636943]
[1757404283829,0.7991,4354.8,4354.7,5.29636943]
[1757404284456,1.2683,4354.8,4354.7,5.29636943]
[1757404285358,0.7991,4354.8,4354.7,5.29636943]
[1757404285561,0.025,4354.8,4354.7,6.80039696]
[1757404285761,0.025,4354.8,4354.7,7.09899696]
[1757404286330,0.025,4354.8,4354.7,6.80039696]
[1757404286535,0.7991,4354.8,4354.7,6.21236943]
[1757404286948,1.2683,4354.8,4354.7,6.21236943]
[1757404287154,0.7991,4354.8,4354.7,6.21236943]
[1757404288259,0.7991,4354.8,4354.7,6.32676943]
[1757404288868,1.2683,4354.8,4354.7,6.32676943]
[1757404289254,1.2683,4354.8,4354.7,2.41076943]
[1757404289455,1.39923,4354.8,4354.7,3.915]
[1757404289660,1.39923,4354.8,4354.7,6.21136943]
[1757404291670,0.7991,4354.8,4354.7,6.21136943]
[1757404292067,1.274,4354.8,4354.7,2.29636943]
[1757404292986,1.274,4354.8,4354.6,3.915]
[1757404293186,0.9547,4354.7,4354.4,2.29648752]
[1757404293388,0.9547,4354.6,4354.5,5.29647491]
[1757404293554,1.2416,4354.6,4354.5,5.29647491]
[1757404294257,1.2416,4354.6,4354.5,3.0]
[1757404294456,1.37226,4354.6,4354.4,3.914]
[1757404294678,0.41756,4354.6,4354.5,2.29647491]
[1757404294870,0.2869,4354.6,4354.5,2.29647491]
[1757404295271,1.2416,4354.6,4354.5,2.29647491]
[1757404296478,1.2416,4354.6,4354.4,3.914]
[1757404296675,0.2869,4354.6,4354.4,3.914]
[1757404296878,0.9547,4354.5,4354.4,6.914]
[1757404297067,1.2416,4354.5,4354.4,9.21050405]
[1757404298064,0.7667,4354.5,4354.4,9.21050405]
[1757404300075,0.1144,4354.6,4354.5,2.29647491]
[1757404300788,0.4013,4354.6,4354.5,2.29647491]
[1757404300995,0.8803,4354.6,4354.5,2.29647491]
[1757404303444,0.026,4354.8,4354.7,2.29636943]
[1757404303607,0.026,4354.8,4354.7,6.20936943]
[1757404303791,0.026,4354.8,4354.7,6.50736943]
[1757404308395,0.026,4354.8,4354.7,6.95556943]
[1757404309339,0.026,4354.8,4354.7,6.20836943]
[1757404309536,0.026,4354.8,4354.7,6.95456943]
[1757404311315,0.026,4354.8,4354.7,6.50636943]
[1757404312163,0.026,4354.8,4354.7,6.95456943]
[1757404313950,0.026,4354.8,4354.7,9.95456943]
[1757404314111,0.026,4354.8,4354.7,11.86053386]
[1757404314460,0.026,4354.8,4354.7,11.97493386]
[1757404315760,0.026,4354.8,4354.7,11.51633386]
[1757404318457,0.026,4354.8,4354.7,12.30833386]
[1757404318629,0.026,4354.8,4354.7,12.76693386]
[1757404318630,1e-08,4354.8,4354.7,12.76693386]
[1757404319020,1e-08,4354.9,4354.8,6.0883167]
[1757404319233,1e-08,4354.9,4354.8,7.51126113]
[1757404319432,1e-08,4354.9,4354.8,7.80926113]
[1757404320227,1e-08,4354.9,4354.8,7.35066113]
[1757404320641,1e-08,4354.9,4354.8,7.80926113]
[1757404321654,1e-08,4354.9,4354.8,7.35066113]
[1757404322634,1e-08,4354.9,4354.8,7.82856113]
[1757404322819,1e-08,4354.9,4354.8,7.35066113]
[1757404323630,1e-08,4354.9,4354.8,7.82856113]
[1757404326427,1e-08,4354.9,4354.8,7.35066113]
[1757404326626,1e-08,4354.9,4354.8,7.82856113]
[1757404327258,0.00020001,4355.1,4355.0,2.29621125]
[1757404327428,0.00020001,4355.1,4355.0,11.46653779]
[1757404327624,0.00020001,4355.1,4355.0,12.32377568]
[1757404328411,0.00020001,4355.1,4355.0,11.85257568]
[1757404328660,0.00020001,4355.1,4355.0,12.32377568]
[1757404329031,0.00020001,4355.1,4355.0,11.85257568]
[1757404329231,0.00020001,4355.1,4355.0,12.32377568]
[1757404330961,0.00020001,4355.1,4355.0,8.41577568]
[1757404331261,0.00020001,4355.1,4355.0,10.76497568]
[1757404332261,0.29090001,4355.1,4355.0,10.76497568]
[1757404332456,0.77400001,4355.1,4355.0,10.76497568]
[1757404334293,0.00020001,4355.1,4355.0,10.76497568]
[1757404334952,0.29090001,4355.1,4355.0,10.76497568]
[1757404335281,0.00020001,4355.1,4355.0,11.05957568]
[1757404335483,0.00020001,4355.1,4355.0,11.53077568]
[1757404340892,0.00020001,4355.1,4355.0,11.05957568]
[1757404341062,0.00020001,4355.1,4355.0,11.53077568]
[1757404341380,0.00020001,4355.1,4355.0,12.32947568]
[1757404341582,0.00020001,4355.1,4355.0,12.32277568]
[1757404344471,0.29090001,4355.1,4355.0,11.55697568]
[1757404344851,0.00020001,4355.1,4355.0,11.85157568]
[1757404346278,0.29090001,4355.1,4355.0,11.55697568]
[1757404346476,0.77400001,4355.1,4355.0,11.55697568]
[1757404347226,1.20170001,4355.1,4355.0,11.55697568]
[1757404347594,1.20170001,4355.1,4355.0,10.76497568]
[1757404348424,0.77400001,4355.1,4355.0,10.76497568]
[1757404350247,0.48330001,4355.1,4355.0,10.76497568]
[1757404350529,0.00020001,4355.1,4355.0,10.76497568]
[1757404351730,0.29770001,4355.1,4355.0,10.76497568]
[1757404351900,0.78330001,4355.1,4355.0,10.76497568]
[1757404352308,0.78330001,4355.1,4355.0,6.85797568]
[1757404352509,1.23600001,4355.1,4355.0,0.1144]
[1757404352715,1.23600001,4355.1,4355.0,2.29621125]
[1757404353226,1.23520001,4355.1,4355.0,2.29621125]
[1757404354814,1.23520001,4355.1,4354.9,3.902]
[1757404355020,0.9383,4355.0,4354.6,2.29841623]
[1757404355219,0.9383,4355.0,4354.9,2.29626397]
[1757404355414,1.2358,4355.0,4354.9,6.19726397]
[1757404355641,1.2358,4355.0,4354.6,0.002]
[1757404355848,1.2358,4355.0,4354.7,3.901]
[1757404356012,0.9383,4354.9,4354.7,3.901]
[1757404356340,1.2358,4354.8,4354.7,3.901]
[1757404356742,1.55615697,4354.8,4354.6,3.903]
[1757404356940,0.9383,4354.7,4354.6,3.903]
[1757404357139,0.9383,4354.7,4354.6,0.002]
[1757404357140,1.2358,4354.7,4354.6,0.002]
[1757404358511,3.53216943,4354.7,4354.6,0.002]
[1757404359012,1.2358,4354.7,4354.6,0.002]
[1757404362315,3.53216943,4354.7,4354.6,0.002]
[1757404362646,1.88752437,4354.7,4354.6,0.002]
[1757404362945,4.1838938,4354.7,4354.6,0.002]
[1757404363932,8.0848938,4354.7,4354.6,0.002]
[1757404367346,9.8468938,4354.7,4354.6,0.002]
[1757404368437,10.01901817,4354.7,4354.6,0.002]
[1757404372051,10.81101817,4354.7,4354.6,0.002]
[1757404372828,11.02322357,4354.7,4354.6,0.002]
[1757404374325,11.02323003,4354.7,4354.6,0.002]
[1757404378873,11.02350725,4354.7,4354.6,0.002]
[1757404379567,11.02270725,4354.7,4354.6,0.002]
[1757404382291,11.36339589,4354.7,4354.6,0.002]
[1757404384069,11.38169589,4354.7,4354.6,0.002]
[1757404384270,10.90749589,4354.7,4354.6,0.002]
[1757404384573,11.38169589,4354.7,4354.6,0.002]
[1757404389160,11.8732654,4354.7,4354.6,0.002]
[1757404389357,14.8732654,4354.7,4354.6,0.002]
[1757404391758,2.9788716,4354.7,4354.6,0.2965]
[1757404391959,6.04261345,4354.7,4354.6,1.2168]
[1757404392864,5.87048908,4354.7,4354.6,1.2168]
[1757404393094,5.87048908,4354.7,4354.6,0.7549]
[1757404393667,5.87048908,4354.7,4354.6,1.2168]
[1757404395883,5.87048908,4354.7,4354.6,0.7549]
[1757404399184,5.87146568,4354.7,4354.6,0.7549]
[1757404400695,5.658,4354.7,4354.6,0.7549]
[1757404405084,4.658,4354.7,4354.6,0.7549]
[1757404405680,4.6572,4354.7,4354.6,0.7549]
[1757404406674,0.7612,4354.7,4354.6,0.7549]
[1757404406874,4.6542,4354.7,4354.6,0.7549]
[1757404407930,0.7612,4354.7,4354.6,0.7549]
[1757404408225,4.6532,4354.7,4354.6,3.51322217]
[1757404408444,3.892,4354.8,4354.6,1.79797434]
[1757404408719,0.001,4355.1,4355.0,2.29621125]
[1757404408937,3.893,4355.1,4355.0,2.29621125]
[1757404409083,0.001,4355.1,4355.0,3.51101125]
[1757404409284,3.893,4355.1,4355.0,3.51101125]
[1757404409679,3.893,4355.1,4355.0,3.04911125]
[1757404410121,3.893,4355.1,4355.0,0.7529]
[1757404411481,0.001,4355.1,4355.0,0.7529]
[1757404411686,3.892,4355.1,4355.0,3.04911125]
[1757404411887,3.892,4355.1,4355.0,0.7529]
[1757404412431,3.892,4355.1,4355.0,3.04911125]
[1757404412807,3.892,4355.1,4355.0,0.7529]
[1757404413832,0.001,4355.1,4355.0,3.38693147]
[1757404413996,0.001,4355.1,4355.0,3.54371125]
[1757404417132,0.001,4355.1,4355.0,3.05241125]
[1757404417929,0.001,4355.1,4355.0,3.54371125]
[1757404418120,0.001,4355.1,4355.0,3.05241125]
[1757404421337,0.001,4355.1,4355.0,4.09001965]
[1757404422657,0.001,4355.1,4355.0,7.11298176]
[1757404422951,0.001,4355.1,4355.0,7.09001965]
[1757404423157,0.001,4355.1,4355.0,7.18184038]
[1757404431550,0.001,4355.1,4355.0,7.29624038]
[1757404431745,0.0002,4355.1,4355.0,7.29624038]
[1757404432562,0.0002,4355.1,4355.0,6.33474038]
[1757404432743,0.0002,4355.1,4355.0,6.79644038]
[1757404436136,0.0002,4355.1,4355.0,6.33474038]
[1757404436335,0.0002,4355.1,4355.0,10.12791965]
[1757404438338,0.3028,4355.1,4355.0,9.84191965]
[1757404438544,0.8025,4355.1,4355.0,9.29561125]
[1757404440179,0.8025,4355.1,4355.0,5.41061125]
[1757404440673,0.3028,4355.1,4355.0,5.41061125]
[1757404440845,0.8025,4355.1,4355.0,5.41061125]
[1757404441548,0.0002,4355.1,4355.0,11.20508238]
[1757404445181,0.0002,4355.1,4355.0,10.74888238]
[1757404448868,0.0002,4355.1,4355.0,11.20508238]
[1757404452806,0.0002,4355.1,4355.0,10.74888238]
[1757404452987,0.7648,4355.1,4355.0,10.08361125]
[1757404453187,0.7648,4355.1,4355.0,6.20261125]
[1757404453397,1.2327,4355.1,4355.0,6.20261125]
[1757404453780,0.7648,4355.1,4355.0,6.20261125]
[1757404453983,0.466,4355.1,4355.0,6.20261125]
[1757404454283,0.0002,4355.1,4355.0,6.20261125]
[1757404454970,0.0002,4355.1,4355.0,6.20461125]
[1757404457299,0.299,4355.1,4355.0,6.20461125]
[1757404457504,0.0002,4355.1,4355.0,6.20461125]
[1757404457875,0.0004,4355.2,4355.1,6.08815852]
[1757404458097,0.4662,4355.2,4355.1,6.08815852]
[1757404458403,0.765,4355.2,4355.1,6.08815852]
[1757404460225,0.0004,4355.2,4355.1,6.08815852]
[1757404461222,0.2992,4355.2,4355.1,6.08815852]
[1757404461420,0.765,4355.2,4355.1,6.08815852]
[1757404461926,0.765,4355.2,4355.1,3.08815852]
[1757404462117,1.2329,4355.2,4355.1,3.08815852]
[1757404462821,1.2329,4355.2,4355.1,3.09152244]
[1757404463026,0.765,4355.2,4355.1,3.09152244]
[1757404463731,1.2329,4355.2,4355.1,3.09152244]
[1757404465825,0.765,4355.2,4355.1,3.09152244]
[1757404466618,1.2329,4355.2,4355.1,2.29952244]
[1757404470102,0.765,4355.2,4355.1,2.29952244]